fUST/lending_fUST_20250812
["ID","MTS","AMOUNT","RATE_DAILY","PERIOD"]
[378749297,1755001849505,-460.0,0.00018821,2]
[378749298,1755001849515,-460.0,0.00018821,2]
[378749299,1755001849525,-843.83,0.00018821,2]
[378749300,1755001849536,-460.0,0.00018821,2]
[378749301,1755001849546,-1540.86,0.00018821,2]
[378749302,1755001849556,-460.0,0.00018821,2]
[378749303,1755001849566,-460.0,0.00018821,2]
[378749304,1755001849577,-1700.15,0.00018821,2]
[378749305,1755001849594,-460.0,0.00018821,2]
[378749306,1755001849603,-460.0,0.00018821,2]
[378749307,1755001849613,-722.17,0.00018821,2]
[378749308,1755001849623,-460.0,0.00018821,2]
[378749309,1755001849634,-460.0,0.00018821,2]
[378749310,1755001849644,-960.3,0.00018821,2]
[378749311,1755001849654,-456.94476645,0.00018821,2]
[378749312,1755001849664,-1988.25,0.00018821,2]
[378749313,1755001849674,-537.4,0.00018821,2]
[378749314,1755001849684,-460.0,0.00018821,2]
[378749315,1755001849694,-460.0,0.00018821,2]
[378749316,1755001849703,-460.0,0.00018821,2]
[378749317,1755001849713,-460.0,0.00018821,2]
[378749318,1755001849723,-460.0,0.00018821,2]
[378749319,1755001849732,-460.0,0.00018821,2]
[378749320,1755001849742,-2093.8,0.00018821,2]
[378749321,1755001849752,-460.0,0.00018821,2]
[378749322,1755001849762,-460.0,0.00018821,2]
[378749323,1755001849772,-460.0,0.00018821,2]
[378749324,1755001849782,-460.0,0.00018821,2]
[378749325,1755001849791,-726.36,0.00018821,2]
[378749326,1755001849804,-472.46,0.00018821,2]
[378749327,1755001849814,-716.43,0.00018821,2]
[378749328,1755001849823,-660.76,0.00018821,2]
[378749329,1755001849839,-460.0,0.00018821,2]
[378749330,1755001849849,-302.28,0.00018832,2]
[378749331,1755001849859,-451.51948911,0.00018832,2]
[378749332,1755001849869,-460.0,0.00018833,2]
[378749333,1755001849879,-460.0,0.00018833,2]
[378749334,1755001849889,-840.44,0.00018833,2]
[378749335,1755001849899,-460.0,0.00018833,2]
[378749336,1755001849909,-460.0,0.00018833,2]
[378749337,1755001849919,-460.0,0.00018833,2]
[378749338,1755001849929,-561.43,0.00018833,2]
[378749339,1755001849938,-460.0,0.00018833,2]
[378749340,1755001849948,-460.0,0.00018833,2]
[378749341,1755001849957,-460.0,0.00018833,2]
[378749342,1755001849967,-460.0,0.00018833,2]
[378749343,1755001849977,-527.65,0.00018833,2]
[378749344,1755001849986,-497.93,0.00018833,2]
[378749345,1755001849996,-460.0,0.00018833,2]
[378749346,1755001850006,-460.0,0.00018833,2]
[378749347,1755001850015,-460.0,0.00018833,2]
[378749348,1755001850025,-460.0,0.00018833,2]
[378749349,1755001850035,-460.0,0.00018833,2]
[378749350,1755001850044,-460.0,0.00018833,2]
[378749351,1755001850054,-873.53,0.00018833,2]
[378749352,1755001850063,-463.7522725,0.00018833,2]
[378749353,1755001850073,-1212.06,0.00018833,2]
[378749354,1755001850087,-460.0,0.00018833,2]
[378749355,1755001850097,-460.0,0.00018833,2]
[378749356,1755001850106,-154.49117955,0.00018833,2]
[378749357,1755001850116,-460.0,0.00018833,2]
[378749358,1755001850126,-460.0,0.00018833,2]
[378749359,1755001850137,-573.94922399,0.00018833,2]
[378749360,1755001850148,-151.0,0.000189,2]
[378749361,1755001850159,-2531.16286064,0.000189,2]
[378749362,1755001850169,-470.96,0.00018968,2]
[378749363,1755001850180,-460.0,0.00018968,2]
[378749364,1755001850190,-460.0,0.00018968,2]
[378749365,1755001850200,-1036.58,0.00018968,2]
[378749366,1755001850210,-460.0,0.00018968,2]
[378749367,1755001850219,-2283.43,0.00018968,2]
[378749368,1755001850229,-460.0,0.00018968,2]
[378749369,1755001850239,-460.0,0.00018968,2]
[378749370,1755001850249,-1000.0,0.00018968,2]
[378749371,1755001850263,-1517.76838457,0.00018968,2]
[378749372,1755001850272,-1500.0,0.00018968,2]
[378749373,1755001850282,-1317.23,0.00018995,2]
[378749374,1755001850292,-470.69,0.00018995,2]
[378749375,1755001850302,-1818.54,0.00018995,2]
[378749376,1755001850312,-460.0,0.00018995,2]
[378749377,1755001850322,-460.0,0.00018995,2]
[378749378,1755001850331,-2926.68,0.00018995,2]
[378749379,1755001850348,-1009.34,0.00018995,2]
[378749380,1755001850360,-485.17,0.00018995,2]
[378749381,1755001850371,-460.0,0.00018995,2]
[378749382,1755001850381,-696.18,0.00018995,2]
[378749383,1755001850392,-460.0,0.00018995,2]
[378749384,1755001850403,-769.97,0.00018995,2]
[378749385,1755001850414,-556.78,0.00018995,2]
[378749386,1755001850424,-634.63,0.00018995,2]
[378749387,1755001850434,-10868.68155896,0.00019,2]
[378749388,1755001850444,-800.0,0.00019057,2]
[378749389,1755001850453,-1500.0,0.00019068,2]
[378749390,1755001850464,-1500.0,0.00019068,2]
[378749391,1755001850474,-1500.0,0.00019068,2]
[378749392,1755001850484,-1500.0,0.00019068,2]
[378749393,1755001850494,-1500.0,0.00019068,2]
[378749394,1755001850504,-1500.0,0.00019068,2]
[378749395,1755001850514,-208.0,0.00019074,2]
[378749396,1755001850524,-576.41,0.00019094,2]
[378749397,1755001850533,-472.93,0.00019094,2]
[378749398,1755001850543,-492.12,0.00019094,2]
[378749399,1755001850552,-460.0,0.00019094,2]
[378749400,1755001850562,-460.0,0.00019094,2]
[378749401,1755001850572,-460.0,0.00019094,2]
[378749402,1755001850584,-460.0,0.00019094,2]
[378749403,1755001850595,-554.22,0.00019094,2]
[378749404,1755001850605,-460.0,0.00019094,2]
[378749405,1755001850615,-460.0,0.00019094,2]
[378749406,1755001850626,-6452.56,0.00019094,2]
[378749407,1755001850636,-1955.18,0.00019094,2]
[378749408,1755001850645,-2570.16,0.00019094,2]
[378749409,1755001850655,-460.0,0.00019095,2]
[378749410,1755001850667,-460.0,0.00019095,2]
[378749411,1755001850677,-3017.534926,0.00019095,2]
[378749412,1755001850687,-460.0,0.00019095,2]
[378749413,1755001850697,-654.54,0.00019095,2]
[378749414,1755001850707,-460.0,0.00019095,2]
[378749415,1755001850717,-460.0,0.00019095,2]
[378749416,1755001850727,-460.0,0.00019095,2]
[378749417,1755001850737,-460.0,0.00019095,2]
[378749418,1755001850747,-460.0,0.00019095,2]
[378749419,1755001850756,-460.0,0.00019095,2]
[378749420,1755001850767,-460.0,0.00019095,2]
[378749421,1755001850777,-460.0,0.00019095,2]
[378749422,1755001850792,-460.0,0.00019095,2]
[378749423,1755001850801,-460.0,0.00019095,2]
[378749424,1755001850810,-460.0,0.00019095,2]
[378749425,1755001850819,-586.46,0.00019095,2]
[378749426,1755001850829,-798.89,0.00019095,2]
[378749427,1755001850844,-483.78,0.00019095,2]
[378749428,1755001850854,-460.0,0.00019095,2]
[378749429,1755001850863,-460.0,0.00019095,2]
[378749430,1755001850873,-1100.68,0.00019095,2]
[378749431,1755001850883,-690.52,0.00019095,2]
[378749432,1755001850893,-460.0,0.00019095,2]
[378749433,1755001850903,-1179.26,0.00019095,2]
[378749434,1755001850913,-460.0,0.00019095,2]
[378749435,1755001850924,-648.46,0.00019095,2]
[378749436,1755001850934,-460.0,0.00019095,2]
[378749437,1755001850944,-460.0,0.00019095,2]
[378749438,1755001850954,-1091.78,0.00019095,2]
[378749439,1755001850964,-460.0,0.00019095,2]
[378749440,1755001850974,-460.0,0.00019095,2]
[378749441,1755001850983,-460.0,0.00019095,2]
[378749442,1755001850993,-843.83,0.00019095,2]
[378749443,1755001851003,-460.0,0.00019095,2]
[378749444,1755001851013,-1540.86,0.00019095,2]
[378749445,1755001851023,-460.0,0.00019095,2]
[378749446,1755001851033,-460.0,0.00019095,2]
[378749447,1755001851044,-1700.15,0.00019095,2]
[378749448,1755001851054,-460.0,0.00019095,2]
[378749449,1755001851063,-460.0,0.00019095,2]
[378749450,1755001851074,-722.17,0.00019095,2]
[378749451,1755001851087,-960.3,0.00019095,2]
[378749452,1755001851097,-1988.25,0.00019095,2]
[378749453,1755001851107,-537.4,0.00019095,2]
[378749454,1755001851116,-460.0,0.00019095,2]
[378749455,1755001851126,-460.0,0.00019095,2]
[378749456,1755001851136,-460.0,0.00019095,2]
[378749457,1755001851146,-460.0,0.00019095,2]
[378749458,1755001851156,-460.0,0.00019095,2]
[378749459,1755001851166,-460.0,0.00019095,2]
[378749460,1755001851176,-2093.8,0.00019095,2]
[378749461,1755001851186,-460.0,0.00019095,2]
[378749462,1755001851196,-460.0,0.00019095,2]
[378749463,1755001851206,-726.36,0.00019095,2]
[378749464,1755001851216,-472.46,0.00019095,2]
[378749465,1755001851226,-716.43,0.00019095,2]
[378749466,1755001851236,-660.76,0.00019095,2]
[378749467,1755001851246,-460.0,0.00019095,2]
[378749468,1755001851262,-151.0,0.000191,2]
[378749469,1755001851272,-460.0,0.00019107,2]
[378749470,1755001851281,-460.0,0.00019107,2]
[378749471,1755001851291,-840.44,0.00019107,2]
[378749472,1755001851302,-460.0,0.00019107,2]
[378749473,1755001851312,-460.0,0.00019107,2]
[378749474,1755001851323,-460.0,0.00019107,2]
[378749475,1755001851337,-561.43,0.00019107,2]
[378749476,1755001851348,-460.0,0.00019107,2]
[378749477,1755001851359,-460.0,0.00019107,2]
[378749478,1755001851369,-460.0,0.00019107,2]
[378749479,1755001851379,-527.65,0.00019107,2]
[378749480,1755001851390,-460.0,0.00019107,2]
[378749481,1755001851401,-460.0,0.00019107,2]
[378749482,1755001851411,-460.0,0.00019107,2]
[378749483,1755001851422,-304.52140655,0.00019107,2]
[378749484,1755001851432,-460.0,0.00019107,2]
[378749485,1755001851442,-460.0,0.00019107,2]
[378749486,1755001851452,-873.53,0.00019107,2]
[378749487,1755001851462,-1212.06,0.00019107,2]
[378749488,1755001851473,-460.0,0.00019107,2]
[378749489,1755001851483,-460.0,0.00019107,2]
[378749490,1755001851495,-460.0,0.00019107,2]
[378749491,1755001851505,-460.0,0.00019107,2]
[378749492,1755001851515,-160.0,0.00019142,2]
[378749493,1755001851525,-12673.43806534,0.00019145,2]
[378749494,1755001851535,-215.52532928,0.0001915,2]
[378749495,1755001851544,-528.03329096,0.0001915,2]
[378749496,1755001851554,-160.0,0.0001915,2]
[378749497,1755001851565,-417.15472785,0.0001915,2]
[378749498,1755001851575,-160.0,0.0001915,2]
[378749499,1755001851591,-843.25559725,0.0001915,2]
[378749500,1755001851601,-160.0,0.0001915,2]
[378749501,1755001851612,-160.0,0.0001915,2]
[378749502,1755001851622,-232.0176383,0.0001915,2]
[378749503,1755001851632,-461.76100612,0.0001915,2]
[378749504,1755001851642,-216.70963917,0.0001915,2]
[378749505,1755001851652,-160.0,0.0001915,2]
[378749506,1755001851662,-160.0,0.0001915,2]
[378749507,1755001851673,-160.0,0.0001915,2]
[378749508,1755001851683,-151.0,0.00019178,2]
[378749509,1755001851693,-666.0,0.00019178,2]
[378749510,1755001851704,-151.0,0.000192,2]
[378749511,1755001851714,-3000.0,0.000192,2]
[378749512,1755001851725,-3000.0,0.000192,2]
[378749513,1755001851735,-3000.0,0.000192,2]
[378749514,1755001851745,-258.22936594,0.00019233,2]
[378749515,1755001851755,-151.0,0.00019234,2]
[378749516,1755001851765,-151.0,0.00019234,2]
[378749517,1755001851775,-151.0,0.00019234,2]
[378749518,1755001851785,-151.0,0.00019234,2]
[378749519,1755001851795,-151.0,0.00019234,2]
[378749520,1755001851805,-151.0,0.00019234,2]
[378749521,1755001851815,-151.0,0.00019234,2]
[378749522,1755001851981,-151.0,0.00019234,2]
[378749523,1755001851991,-151.0,0.00019234,2]
[378749524,1755001852001,-151.0,0.00019234,2]
[378749525,1755001852011,-151.0,0.00019234,2]
[378749526,1755001852020,-151.0,0.00019234,2]
[378749527,1755001852029,-151.0,0.00019234,2]
[378749528,1755001852039,-151.0,0.00019234,2]
[378749529,1755001852049,-151.0,0.00019234,2]
[378749530,1755001852059,-151.0,0.00019234,2]
[378749531,1755001852068,-151.0,0.00019234,2]
[378749532,1755001852078,-151.0,0.00019234,2]
[378749533,1755001852091,-151.0,0.00019234,2]
[378749534,1755001852101,-2183.31810187,0.00019234,2]
[378749535,1755001852111,-17842.522448,0.00019234,2]
[378749536,1755001852120,-151.0,0.00019234,2]
[378749537,1755001852130,-151.0,0.00019234,2]
[378749538,1755001852139,-500.0,0.00019234,2]
[378749539,1755001852148,-151.0,0.00019234,2]
[378749540,1755001852157,-151.0,0.00019234,2]
[378749541,1755001852167,-500.0,0.00019234,2]
[378749542,1755001852176,-151.0,0.00019234,2]
[378749543,1755001852187,-151.0,0.00019234,2]
[378749544,1755001852197,-151.0,0.00019234,2]
[378749545,1755001852206,-151.0,0.00019234,2]
[378749546,1755001852216,-151.0,0.00019234,2]
[378749547,1755001852225,-500.0,0.00019234,2]
[378749548,1755001852235,-151.0,0.00019234,2]
[378749549,1755001852244,-151.0,0.00019234,2]
[378749550,1755001852255,-151.0,0.00019234,2]
[378749551,1755001852265,-500.0,0.00019234,2]
[378749552,1755001852277,-151.0,0.00019234,2]
[378749553,1755001852286,-151.0,0.00019234,2]
[378749554,1755001852295,-151.0,0.00019234,2]
[378749555,1755001852304,-151.0,0.00019234,2]
[378749556,1755001852314,-500.0,0.00019234,2]
[378749557,1755001852323,-151.0,0.00019234,2]
[378749558,1755001852337,-151.0,0.00019234,2]
[378749559,1755001852347,-151.0,0.00019234,2]
[378749560,1755001852356,-500.0,0.00019234,2]
[378749561,1755001852366,-152.62670612,0.00019234,2]
[378749562,1755001852375,-151.0,0.00019234,2]
[378749563,1755001852385,-151.0,0.00019234,2]
[378749564,1755001852395,-500.0,0.00019234,2]
[378749565,1755001852405,-151.0,0.00019234,2]
[378749566,1755001852416,-500.0,0.00019234,2]
[378749567,1755001852427,-151.0,0.00019234,2]
[378749568,1755001852436,-151.0,0.00019234,2]
[378749569,1755001852445,-500.0,0.00019234,2]
[378749570,1755001852455,-151.0,0.00019234,2]
[378749571,1755001852465,-151.0,0.00019234,2]
[378749572,1755001852474,-500.0,0.00019234,2]
[378749573,1755001852484,-151.0,0.00019234,2]
[378749574,1755001852494,-151.0,0.00019234,2]
[378749575,1755001852503,-151.0,0.00019234,2]
[378749576,1755001852512,-151.0,0.00019234,2]
[378749577,1755001852522,-151.0,0.00019234,2]
[378749578,1755001852531,-151.0,0.00019234,2]
[378749579,1755001852541,-151.0,0.00019234,2]
[378749580,1755001852550,-151.0,0.00019234,2]
[378749581,1755001852559,-500.0,0.00019234,2]
[378749582,1755001852568,-500.0,0.00019234,2]
[378749583,1755001852578,-151.0,0.00019234,2]
[378749584,1755001852591,-500.0,0.00019234,2]
[378749585,1755001852601,-500.0,0.00019234,2]
[378749586,1755001852610,-500.0,0.00019234,2]
[378749587,1755001852619,-500.0,0.00019234,2]
[378749588,1755001852629,-300.0,0.00019234,2]
[378749589,1755001852639,-300.0,0.00019234,2]
[378749590,1755001852649,-500.0,0.00019234,2]
[378749591,1755001852660,-300.0,0.00019234,2]
[378749592,1755001852670,-300.0,0.00019234,2]
[378749593,1755001852680,-250.0,0.00019234,2]
[378749594,1755001852690,-250.0,0.00019234,2]
[378749595,1755001852700,-151.0,0.00019234,2]
[378749596,1755001852709,-250.0,0.00019234,2]
[378749597,1755001852718,-460.0,0.00019242,2]
[378749598,1755001852727,-460.0,0.00019242,2]
[378749599,1755001852736,-1036.58,0.00019242,2]
[378749600,1755001852745,-460.0,0.00019242,2]
[378749601,1755001852754,-2283.43,0.00019242,2]
[378749602,1755001852763,-460.0,0.00019242,2]
[378749603,1755001852773,-460.0,0.00019242,2]
[378749604,1755001852782,-172.47157316,0.00019243,2]
[378749605,1755001852791,-800.0,0.0001925,2]
[378749606,1755001852801,-975.62,0.0001926,3]
[378749607,1755001852810,-487.82,0.0001926,3]
[378749608,1755001852819,-1001.19906462,0.00019261,2]
[378749609,1755001852828,-1000.0,0.00019261,2]
[378749610,1755001852840,-1000.0,0.00019261,2]
[378749611,1755001852849,-7071.45567181,0.00019269,2]
[378749612,1755001852859,-1317.23,0.00019269,2]
[378749613,1755001852868,-470.69,0.00019269,2]
[378749614,1755001852877,-1818.54,0.00019269,2]
[378749615,1755001852887,-460.0,0.00019269,2]
[378749616,1755001852896,-460.0,0.00019269,2]
[378749617,1755001852906,-2926.68,0.00019269,2]
[378749618,1755001852915,-1009.34,0.00019269,2]
[378749619,1755001852923,-485.17,0.00019269,2]
[378749620,1755001852933,-460.0,0.00019269,2]
[378749621,1755001852942,-696.18,0.00019269,2]
[378749622,1755001852951,-460.0,0.00019269,2]
[378749623,1755001852961,-769.97,0.00019269,2]
[378749624,1755001852970,-556.78,0.00019269,2]
[378749625,1755001852979,-634.63,0.00019269,2]
[378749626,1755001852988,-254.49316604,0.00019271,2]
[378749627,1755001852997,-310.0,0.00019278,2]
[378749628,1755001853007,-2264.10087164,0.00019289,2]
[378749629,1755001853016,-153.969912,0.00019329,2]
[378749630,1755001853025,-151.0,0.00019329,2]
[378749631,1755001853035,-88953.73677977,0.00019329,2]
[378749632,1755001853044,-208.0,0.0001934,2]
[378749633,1755001853053,-2347.87260389,0.00019344,2]
[378749634,1755001853062,-576.41,0.00019368,2]
[378749635,1755001853071,-492.12,0.00019368,2]
[378749636,1755001853080,-460.0,0.00019368,2]
[378749637,1755001853096,-460.0,0.00019368,2]
[378749638,1755001853105,-554.22,0.00019368,2]
[378749639,1755001853115,-460.0,0.00019368,2]
[378749640,1755001853124,-460.0,0.00019368,2]
[378749641,1755001853133,-6452.56,0.00019368,2]
[378749642,1755001853143,-1955.18,0.00019368,2]
[378749643,1755001853152,-2570.16,0.00019368,2]
[378749644,1755001853161,-460.0,0.00019369,2]
[378749645,1755001853171,-460.0,0.00019369,2]
[378749646,1755001853181,-460.0,0.00019369,2]
[378749647,1755001853192,-654.54,0.00019369,2]
[378749648,1755001853202,-460.0,0.00019369,2]
[378749649,1755001853211,-460.0,0.00019369,2]
[378749650,1755001853221,-460.0,0.00019369,2]
[378749651,1755001853231,-460.0,0.00019369,2]
[378749652,1755001853241,-460.0,0.00019369,2]
[378749653,1755001853251,-460.0,0.00019369,2]
[378749654,1755001853260,-460.0,0.00019369,2]
[378749655,1755001853269,-460.0,0.00019369,2]
[378749656,1755001853281,-460.0,0.00019369,2]
[378749657,1755001853291,-460.0,0.00019369,2]
[378749658,1755001853300,-186.34970719,0.00019369,2]
[378749659,1755001853311,-586.46,0.00019369,2]
[378749660,1755001853320,-798.89,0.00019369,2]
[378749661,1755001853330,-483.78,0.00019369,2]
[378749662,1755001853345,-460.0,0.00019369,2]
[378749663,1755001853357,-460.0,0.00019369,2]
[378749664,1755001853366,-1100.68,0.00019369,2]
[378749665,1755001853376,-690.52,0.00019369,2]
[378749666,1755001853385,-460.0,0.00019369,2]
[378749667,1755001853396,-1179.26,0.00019369,2]
[378749668,1755001853405,-460.0,0.00019369,2]
[378749669,1755001853414,-648.46,0.00019369,2]
[378749670,1755001853424,-460.0,0.00019369,2]
[378749671,1755001853433,-460.0,0.00019369,2]
[378749672,1755001853443,-1091.78,0.00019369,2]
[378749673,1755001853452,-460.0,0.00019369,2]
[378749674,1755001853462,-460.0,0.00019369,2]
[378749675,1755001853472,-460.0,0.00019369,2]
[378749676,1755001853482,-843.83,0.00019369,2]
[378749677,1755001853491,-460.0,0.00019369,2]
[378749678,1755001853501,-1540.86,0.00019369,2]
[378749679,1755001853511,-460.0,0.00019369,2]
[378749680,1755001853522,-460.0,0.00019369,2]
[378749681,1755001853532,-1700.15,0.00019369,2]
[378749682,1755001853542,-460.0,0.00019369,2]
[378749683,1755001853551,-460.0,0.00019369,2]
[378749684,1755001853561,-722.17,0.00019369,2]
[378749685,1755001853571,-960.3,0.00019369,2]
[378749686,1755001853580,-1988.25,0.00019369,2]
[378749687,1755001853595,-537.4,0.00019369,2]
[378749688,1755001853605,-460.0,0.00019369,2]
[378749689,1755001853614,-460.0,0.00019369,2]
[378749690,1755001853624,-460.0,0.00019369,2]
[378749691,1755001853635,-220.13047612,0.00019369,2]
[378749692,1755001853645,-460.0,0.00019369,2]
[378749693,1755001853655,-431.78222678,0.00019369,2]
[378749694,1755001853665,-2093.8,0.00019369,2]
[378749695,1755001853675,-460.0,0.00019369,2]
[378749696,1755001853685,-460.0,0.00019369,2]
[378749697,1755001853695,-726.36,0.00019369,2]
[378749698,1755001853705,-472.46,0.00019369,2]
[378749699,1755001853715,-716.43,0.00019369,2]
[378749700,1755001853725,-660.76,0.00019369,2]
[378749701,1755001853735,-500.0,0.00019373,2]
[378749702,1755001853744,-500.0,0.00019373,2]
[378749703,1755001853753,-500.0,0.00019373,2]
[378749704,1755001853763,-500.0,0.00019373,2]
[378749705,1755001853772,-500.0,0.00019373,2]
[378749706,1755001853781,-160.09656799,0.00019373,2]
[378749707,1755001853791,-584.15091993,0.00019373,2]
[378749708,1755001853801,-158.16316797,0.00019373,2]
[378749709,1755001853810,-500.0,0.00019373,2]
[378749710,1755001853819,-500.0,0.00019373,2]
[378749711,1755001853829,-503.59885237,0.00019373,2]
[378749712,1755001853843,-500.0,0.00019373,2]
[378749713,1755001853852,-150.0,0.00019373,2]
[378749714,1755001853861,-500.0,0.00019373,2]
[378749715,1755001853871,-500.29311373,0.00019373,2]
[378749716,1755001853881,-500.0,0.00019373,2]
[378749717,1755001853891,-315.48092757,0.00019373,2]
[378749718,1755001853901,-582.64632921,0.00019373,2]
[378749719,1755001853911,-500.0,0.00019373,2]
[378749720,1755001853920,-158.49156836,0.00019373,2]
[378749721,1755001853929,-500.51751135,0.00019373,2]
[378749722,1755001853939,-341.68386757,0.00019373,2]
[378749723,1755001853948,-551.29892843,0.00019373,2]
[378749724,1755001853957,-500.94887245,0.00019373,2]
[378749725,1755001853966,-500.0,0.00019373,2]
[378749726,1755001853975,-323.01291479,0.00019373,2]
[378749727,1755001853984,-500.0,0.00019373,2]
[378749728,1755001853994,-571.59741253,0.00019373,2]
[378749729,1755001854004,-500.0,0.00019373,2]
[378749730,1755001854013,-500.0,0.00019373,2]
[378749731,1755001854023,-500.0,0.00019373,2]
[378749732,1755001854033,-433.30891369,0.00019373,2]
[378749733,1755001854042,-500.0,0.00019373,2]
[378749734,1755001854051,-349.78746667,0.00019373,2]
[378749735,1755001854061,-500.0,0.00019373,2]
[378749736,1755001854070,-500.0,0.00019373,2]
[378749737,1755001854079,-500.0,0.00019373,2]
[378749738,1755001854093,-501.32411645,0.00019373,2]
[378749739,1755001854103,-500.0,0.00019373,2]
[378749740,1755001854112,-500.0,0.00019373,2]
[378749741,1755001854122,-500.45548213,0.00019373,2]
[378749742,1755001854132,-500.0,0.00019373,2]
[378749743,1755001854142,-502.82370544,0.00019373,2]
[378749744,1755001854151,-500.0,0.00019373,2]
[378749745,1755001854162,-500.0,0.00019373,2]
[378749746,1755001854172,-500.0,0.00019373,2]
[378749747,1755001854182,-500.0,0.00019373,2]
[378749748,1755001854192,-500.0,0.00019373,2]
[378749749,1755001854201,-500.0,0.00019373,2]
[378749750,1755001854211,-154.46246951,0.00019373,2]
[378749751,1755001854220,-502.07243738,0.00019373,2]
[378749752,1755001854229,-500.0,0.00019373,2]
[378749753,1755001854239,-500.0,0.00019373,2]
[378749754,1755001854248,-500.0,0.00019373,2]
[378749755,1755001854260,-500.0,0.00019373,2]
[378749756,1755001854271,-500.0,0.00019373,2]
[378749757,1755001854282,-500.0,0.00019373,2]
[378749758,1755001854291,-500.0,0.00019373,2]
[378749759,1755001854302,-500.0,0.00019373,2]
[378749760,1755001854312,-621.67044864,0.00019373,2]
[378749761,1755001854322,-152.418429,0.00019373,2]
[378749762,1755001854332,-151.0,0.00019373,2]
[378749763,1755001854350,-151.0,0.00019373,2]
[378749764,1755001854360,-151.0,0.00019373,2]
[378749765,1755001854371,-160.0,0.00019378,2]
[378749766,1755001854382,-460.0,0.00019381,2]
[378749767,1755001854393,-840.44,0.00019381,2]
[378749768,1755001854403,-460.0,0.00019381,2]
[378749769,1755001854414,-460.0,0.00019381,2]
[378749770,1755001854425,-460.0,0.00019381,2]
[378749771,1755001854436,-561.43,0.00019381,2]
[378749772,1755001854446,-460.0,0.00019381,2]
[378749773,1755001854457,-460.0,0.00019381,2]
[378749774,1755001854467,-460.0,0.00019381,2]
[378749775,1755001854478,-527.65,0.00019381,2]
[378749776,1755001854489,-460.0,0.00019381,2]
[378749777,1755001854500,-460.0,0.00019381,2]
[378749778,1755001854511,-460.0,0.00019381,2]
[378749779,1755001854522,-460.0,0.00019381,2]
[378749780,1755001854533,-460.0,0.00019381,2]
[378749781,1755001854544,-873.53,0.00019381,2]
[378749782,1755001854555,-1212.06,0.00019381,2]
[378749783,1755001854566,-460.0,0.00019381,2]
[378749784,1755001854577,-460.0,0.00019381,2]
[378749785,1755001854595,-460.0,0.00019381,2]
[378749786,1755001854607,-2434.74389024,0.00019399,2]
[378749787,1755001854619,-151.0,0.000194,2]
[378749788,1755001854631,-1458.76240133,0.00019454,2]
[378749789,1755001854642,-151.0,0.00019502,2]
[378749790,1755001854654,-151.0,0.00019502,2]
[378749791,1755001854665,-151.0,0.00019502,2]
[378749792,1755001854675,-151.0,0.00019502,2]
[378749793,1755001854687,-181.146924,0.00019502,2]
[378749794,1755001854697,-181.146924,0.00019502,2]
[378749795,1755001854709,-151.0,0.00019502,2]
[378749796,1755001854723,-151.0,0.00019502,2]